bitfinex/quotes_SOLUSD_20250424
["timestamp","ask_amount","ask_price","bid_price","bid_amount"]
[1745538478420,18.65641398,152.6,152.56,12.10317605]
[1745538479053,12.10317605,152.58,152.53,12.10317605]
[1745538479553,12.10317605,152.58,152.54,2.37635253]
[1745538479751,12.10317605,152.59,152.54,14.47952858]
[1745538479930,12.10317605,152.58,152.54,2.37635253]
[1745538480133,18.65744709,152.58,152.53,12.10317605]
[1745538480644,6.55427104,152.58,152.54,12.10317605]
[1745538481148,6.55427104,152.58,152.49,16.53591815]
[1745538481149,12.10317605,152.55,152.49,12.10317605]
[1745538481342,12.10317605,152.53,152.48,93.60317605]
[1745538482123,12.10317605,152.53,152.49,2.38007096]
[1745538482740,12.10317605,152.53,152.49,14.48324701]
[1745538482944,12.10317605,152.53,152.49,12.10317605]
[1745538483247,12.10317605,152.53,152.49,18.66093736]
[1745538483454,12.10317605,152.55,152.5,12.10317605]
[1745538483751,18.65853244,152.55,152.5,12.10317605]
[1745538485549,12.10317605,152.55,152.51,12.10317605]
[1745538485848,18.65764609,152.57,152.52,12.10317605]
[1745538486048,12.10317605,152.56,152.51,12.10317605]
[1745538487649,18.65831782,152.56,152.51,12.10317605]
[1745538487858,18.65831782,152.56,152.51,18.66006537]
[1745538488355,12.10317605,152.56,152.51,18.66006537]
[1745538488933,12.10317605,152.56,152.52,2.38263092]
[1745538489340,18.65762903,152.57,152.52,14.48580697]
[1745538489846,12.10317605,152.56,152.51,12.10317605]
[1745538490541,12.10317605,152.52,152.47,19.81547605]
[1745538491250,12.10317605,152.52,152.48,2.3848163]
[1745538491659,12.10317605,152.52,152.49,2.3848163]
[1745538491839,18.65981775,152.52,152.49,2.3848163]
[1745538492155,12.10317605,152.51,152.49,2.3848163]
[1745538492655,18.65981775,152.52,152.47,14.48799235]
[1745538493247,94.80317605,152.57,152.51,12.10317605]
[1745538493447,13.68887605,152.58,152.53,12.10317605]
[1745538493965,12.10317605,152.56,152.52,14.48799235]
[1745538494158,12.10317605,152.56,152.52,12.10317605]
[1745538494549,18.65771288,152.57,152.52,12.10317605]
[1745538494972,18.65771288,152.57,152.53,2.38740829]
[1745538495373,12.10317605,152.56,152.53,2.38740829]
[1745538495755,12.10317605,152.56,152.54,2.38740829]
[1745538496258,18.65809688,152.56,152.54,2.38740829]
[1745538496567,18.65809688,152.56,152.52,2.38740829]
[1745538496868,18.65809688,152.56,152.52,14.49058434]
[1745538497376,18.65809688,152.56,152.53,2.38740829]
[1745538498966,12.10317605,152.54,152.53,2.38740829]
[1745538499660,12.10317605,152.54,152.5,2.38740829]
[1745538499857,12.10317605,152.51,152.5,2.38740829]
[1745538500458,12.10317605,152.51,152.48,2.38740829]
[1745538501171,12.10317605,152.52,152.48,14.49058434]
[1745538501582,12.10317605,152.52,152.49,2.38740829]
[1745538502072,18.65970809,152.52,152.49,2.38740829]
[1745538504268,12.10317605,152.51,152.48,2.38740829]
[1745538504466,12.10317605,152.5,152.48,2.38740829]
[1745538504785,12.10317605,152.49,152.48,2.38740829]
[1745538505363,12.10317605,152.5,152.46,2.38740829]
[1745538505563,12.10317605,152.51,152.47,12.10317605]
[1745538505879,12.10317605,152.5,152.46,14.49058434]
[1745538506085,6.55710217,152.51,152.47,2.38740829]
[1745538506265,18.66027822,152.51,152.47,2.38740829]
[1745538506580,18.66027822,152.51,152.47,14.49058434]
[1745538506581,12.10317605,152.51,152.47,14.49058434]
[1745538506880,12.10317605,152.51,152.48,2.38740829]
[1745538507677,12.10317605,152.51,152.47,12.10317605]
[1745538507857,18.66025562,152.51,152.46,12.10317605]
[1745538508287,18.66025562,152.51,152.47,2.38659635]
[1745538508579,12.10317605,152.5,152.47,2.38659635]
[1745538508754,12.10317605,152.48,152.47,2.38659635]
[1745538509482,12.10317605,152.47,152.45,0.063]
[1745538509886,18.66188241,152.47,152.45,0.063]
[1745538510064,18.66188241,152.47,152.46,2.38623713]
[1745538510581,12.10317605,152.47,152.46,2.38623713]
[1745538510762,12.10317605,152.47,152.45,0.063]
[1745538512784,12.10317605,152.48,152.45,0.063]
[1745538514466,18.66111767,152.49,152.45,0.063]
[1745538514774,12.10317605,152.48,152.45,0.063]
[1745538515691,12.10317605,152.47,152.45,0.063]
[1745538516295,18.6616502,152.48,152.45,0.063]
[1745538517804,12.10317605,152.46,152.45,0.063]
[1745538518170,12.24533762,152.46,152.45,0.063]
[1745538519998,18.80443508,152.46,152.45,0.063]
[1745538521200,44.79181043,152.44,152.43,0.063]
[1745538521576,44.79181043,152.44,152.42,0.063]
[1745538521577,18.64964886,152.43,152.42,0.063]
[1745538521898,30.75282491,152.43,152.42,0.063]
[1745538522108,37.31321328,152.43,152.42,0.063]
[1745538524179,37.45537485,152.43,152.42,0.063]
[1745538524386,37.45537485,152.43,152.41,0.063]
[1745538524693,139.45282491,152.42,152.41,0.063]
[1745538526388,147.5320437,152.42,152.41,0.063]
[1745538526598,0.14216157,152.4,152.38,0.063]
[1745538526891,42.99816253,152.4,152.39,1e-08]
[1745538527279,18.79181043,152.39,152.38,0.063]
[1745538527480,44.15498648,152.39,152.38,0.063]
[1745538528577,50.71709685,152.39,152.38,0.063]
[1745538529679,76.57493528,152.39,152.38,0.063]
[1745538537783,38.46960687,152.44,152.38,0.063]
[1745538537984,26.0,152.41,152.38,0.063]
[1745538538197,12.10317605,152.41,152.38,0.063]
[1745538538495,38.10317605,152.41,152.38,0.063]
[1745538538698,12.10317605,152.4,152.38,0.063]
[1745538539308,44.66482604,152.41,152.38,0.063]
[1745538540109,38.10317605,152.41,152.38,0.063]
[1745538540317,19.82010738,152.44,152.38,12.16617605]
[1745538540511,18.66328343,152.44,152.4,12.10317605]
[1745538540817,12.10317605,152.44,152.4,12.10317605]
[1745538540992,12.10317605,152.44,152.39,12.10317605]
[1745538541193,12.10317605,152.44,152.4,12.10317605]
[1745538541413,44.66270376,152.45,152.4,12.10317605]
[1745538541915,12.10317605,152.44,152.4,12.10317605]
[1745538542298,12.10317605,152.43,152.39,12.10317605]
[1745538542993,18.66367923,152.43,152.39,12.10317605]
[1745538543713,18.66367923,152.43,152.38,12.16617605]
[1745538543901,12.10317605,152.42,152.38,0.063]
[1745538544288,12.10317605,152.39,152.38,0.063]
[1745538545517,18.66528642,152.39,152.38,0.063]
[1745538546020,6.56211037,152.39,152.38,0.063]
[1745538546200,18.66501415,152.4,152.38,0.063]
[1745538547217,6.5618381,152.4,152.38,0.063]
[1745538547395,18.66458214,152.41,152.38,0.063]
[1745538547897,6.56140609,152.41,152.38,0.063]
[1745538548100,101.36328019,152.44,152.39,12.10317605]
[1745538548310,18.66328019,152.44,152.39,12.10317605]
[1745538549117,30.75282491,152.43,152.39,12.10317605]
[1745538549519,18.66328019,152.44,152.39,12.10317605]
[1745538551097,6.56010414,152.44,152.4,12.10317605]
[1745538551296,82.7,152.47,152.42,12.10317605]
[1745538551517,94.80317605,152.47,152.43,12.10317605]
[1745538551818,25.36317605,152.48,152.43,12.10317605]
[1745538552008,6.55737704,152.5,152.45,12.10317605]
[1745538552215,32.55737704,152.5,152.46,12.10317605]
[1745538552406,44.66055309,152.5,152.45,12.10317605]
[1745538552604,18.66055309,152.5,152.45,12.10317605]
[1745538553117,44.66055309,152.5,152.45,12.10317605]
[1745538553314,12.10317605,152.49,152.45,12.10317605]
[1745538553912,12.10317605,152.46,152.42,1.5167]
[1745538554220,12.10317605,152.44,152.4,12.10317605]
[1745538554399,12.10317605,152.44,152.39,93.60317605]
[1745538554603,12.10317605,152.44,152.39,12.10317605]
[1745538554804,6.56038837,152.43,152.39,12.10317605]
[1745538556105,6.56038837,152.43,152.4,12.10317605]
[1745538558226,6.55909746,152.46,152.42,12.10317605]
[1745538559540,18.66198619,152.47,152.43,12.10317605]
[1745538560129,18.66198619,152.47,152.42,12.10317605]
[1745538561036,12.10317605,152.46,152.42,12.10317605]
[1745538561407,12.10317605,152.46,152.41,12.10317605]
[1745538562025,12.10317605,152.45,152.41,12.10317605]
[1745538562230,12.10317605,152.44,152.38,27.6433]
[1745538562413,12.10317605,152.43,152.38,1.6433]
[1745538562618,12.10317605,152.43,152.39,12.10317605]
[1745538563129,18.66346684,152.44,152.39,12.10317605]
[1745538564935,12.10317605,152.42,152.38,1.6433]
[1745538565117,12.10317605,152.42,152.38,13.74647605]
[1745538565503,18.66383842,152.43,152.38,13.74647605]
[1745538565706,18.66383842,152.43,152.39,2.38679489]
[1745538566724,18.66383842,152.43,152.38,13.74647605]
[1745538567731,18.66383842,152.43,152.39,12.10317605]
[1745538567918,12.10317605,152.43,152.39,12.10317605]
[1745538568119,18.66366905,152.43,152.39,12.10317605]
[1745538570008,18.66366905,152.43,152.38,13.74647605]
[1745538573332,14.31759705,152.43,152.38,9.40040405]
[1745538573529,7.75710405,152.42,152.38,7.82010405]
[1745538574128,7.75710405,152.41,152.38,0.063]
[1745538574315,14.31831813,152.42,152.38,7.82010405]
[1745538575738,7.75710405,152.43,152.39,7.75710405]
[1745538575912,14.31773597,152.43,152.39,7.75710405]
[1745538577041,7.75710405,152.42,152.38,7.82010405]
[1745538577415,14.31773597,152.43,152.39,7.75710405]
[1745538577616,14.31773597,152.43,152.39,10.14819778]
[1745538578447,14.31773597,152.43,152.39,7.75710405]
[1745538578941,14.31773597,152.43,152.4,2.39262511]
[1745538579654,14.31773597,152.43,152.39,7.75710405]
[1745538580836,7.75710405,152.43,152.39,14.31921384]
[1745538581137,7.75710405,152.46,152.42,7.75710405]
[1745538582142,7.75710405,152.45,152.41,7.75710405]
[1745538582527,7.75710405,152.43,152.42,2.39481375]
[1745538583036,7.75710405,152.43,152.39,7.75710405]
[1745538583417,7.75710405,152.44,152.39,7.75710405]
[1745538583942,7.75710405,152.44,152.4,2.39588431]
[1745538584647,14.3172788,152.44,152.41,2.39588431]
[1745538586041,14.3172788,152.44,152.4,2.39588431]
[1745538586443,7.75710405,152.43,152.4,2.39588431]
[1745538586739,7.75710405,152.43,152.41,2.39588431]
[1745538587532,7.75710405,152.43,152.4,2.39588431]
[1745538588015,14.31776554,152.43,152.4,2.39588431]
[1745538588219,7.75710405,152.42,152.41,2.39588431]
[1745538589124,7.75710405,152.42,152.39,2.39588431]
[1745538589921,7.75710405,152.42,152.4,2.39588431]
[1745538590335,14.31776554,152.43,152.4,2.39588431]
[1745538590520,7.75710405,152.41,152.4,2.39588431]
[1745538590716,7.75710405,152.42,152.39,2.39588431]
[1745538591548,7.75710405,152.42,152.4,2.39588431]
[1745538591842,14.31776554,152.43,152.4,2.39588431]
[1745538592344,14.31776554,152.43,152.38,7.82010405]
[1745538592545,7.75710405,152.42,152.38,7.82010405]
[1745538592726,7.75710405,152.42,152.38,0.063]
[1745538593533,7.75710405,152.42,152.39,2.39939824]
[1745538594124,7.75710405,152.43,152.39,2.39939824]
[1745538594423,7.75710405,152.43,152.4,2.39939824]
[1745538594839,14.3177899,152.43,152.38,7.82010405]
[1745538595546,7.75710405,152.42,152.38,7.82010405]
[1745538595749,7.75710405,152.42,152.39,2.39993853]
[1745538596749,14.3177899,152.43,152.4,2.39993853]
[1745538597329,7.75710405,152.42,152.41,2.39993853]
[1745538598154,14.3177899,152.43,152.41,2.39993853]
[1745538598451,7.75710405,152.43,152.39,2.39993853]
[1745538598950,7.75710405,152.43,152.39,10.15704258]
[1745538599136,7.75710405,152.43,152.4,2.39993853]
[1745538600128,7.75710405,152.43,152.41,2.39993853]
[1745538600328,14.31754346,152.43,152.41,2.39993853]
[1745538600654,26.40675291,152.42,152.41,2.39993853]
[1745538600842,18.64964886,152.41,152.38,0.063]
[1745538601049,7.75710405,152.39,152.38,0.063]
[1745538601647,7.75710405,152.39,152.38,2.46542454]
[1745538602739,7.75710405,152.39,152.38,0.063]
[1745538603151,14.31921442,152.39,152.38,0.063]
[1745538607363,32.96886328,152.39,152.38,0.063]
[1745538610954,7.75710405,152.39,152.38,0.063]
[1745538611749,7.75710405,152.4,152.38,0.063]
[1745538612264,32.56083028,152.42,152.38,0.063]
[1745538612452,7.75710405,152.42,152.38,0.063]
[1745538612763,7.75710405,152.42,152.39,2.39710612]
[1745538613474,7.75710405,152.42,152.38,7.82010405]
[1745538614175,19.80002969,152.44,152.39,14.31921442]
[1745538614176,13.24,152.44,152.39,14.31921442]
[1745538614374,0.063,152.46,152.42,7.75710405]
[1745538614585,0.063,152.46,152.43,7.75710405]
[1745538614757,7.82010405,152.46,152.41,7.75710405]
[1745538615253,7.82010405,152.46,152.42,7.75710405]
[1745538615454,0.063,152.46,152.43,7.75710405]
[1745538615780,7.82010405,152.46,152.39,6.56211037]
[1745538615961,7.82010405,152.46,152.42,7.75710405]
[1745538616664,7.82010405,152.46,152.43,2.39440237]
[1745538617265,7.82010405,152.46,152.42,7.75710405]
[1745538617964,7.75710405,152.43,152.38,89.32010405]
[1745538618169,7.75710405,152.42,152.38,81.563]
[1745538618388,7.75710405,152.42,152.39,2.39442082]
[1745538618682,7.75710405,152.41,152.39,2.39442082]
[1745538618859,7.75710405,152.4,152.39,2.39442082]
[1745538619183,7.75710405,152.4,152.38,0.063]
[1745538619702,7.75710405,152.4,152.39,2.39561068]
[1745538621180,14.31878384,152.4,152.39,2.39561068]
[1745538622187,14.31878384,152.4,152.38,0.063]
[1745538622373,7.75710405,152.39,152.38,0.063]
[1745538622862,14.31843018,152.41,152.38,0.063]
[1745538623395,7.75710405,152.42,152.38,7.82010405]
[1745538623561,7.75710405,152.43,152.39,2.39575418]
[1745538623760,7.75710405,152.42,152.39,2.39575418]
[1745538624576,7.75710405,152.42,152.38,0.063]
[1745538624894,14.31815237,152.42,152.38,0.063]
[1745538625796,6.56049876,152.43,152.38,7.82010405]
[1745538625985,7.75710405,152.42,152.39,2.39547144]
[1745538626664,7.75710405,152.42,152.38,0.063]
[1745538627492,7.75710405,152.39,152.38,0.063]
[1745538629905,7.75710405,152.41,152.38,0.063]
[1745538630211,14.31799246,152.42,152.38,7.82010405]
[1745538630583,14.31799246,152.42,152.39,2.3968728]
[1745538631297,7.75710405,152.41,152.39,2.3968728]
[1745538631606,7.75710405,152.41,152.38,0.063]
[1745538632810,6.56088841,152.42,152.38,0.063]
[1745538632985,14.31799246,152.42,152.38,7.82010405]
[1745538633301,14.31799246,152.42,152.39,2.3968827]
[1745538633886,14.31799246,152.42,152.38,0.063]
[1745538634909,14.31799246,152.42,152.38,7.82010405]
[1745538635197,6.56088841,152.42,152.39,2.39663365]
[1745538636386,6.56088841,152.42,152.38,7.82010405]
[1745538637986,6.56088841,152.42,152.39,2.39580587]
[1745538638504,6.56038837,152.43,152.39,2.39580587]
[1745538638708,7.75710405,152.42,152.39,2.39580587]
[1745538639182,7.75710405,152.42,152.4,2.39580587]
[1745538640005,14.31820876,152.42,152.39,2.39580587]
[1745538640805,7.75710405,152.41,152.39,2.39580587]
[1745538641906,14.31869085,152.41,152.39,2.39580587]
[1745538642104,7.75710405,152.4,152.39,2.39580587]
[1745538642486,26.40675291,152.4,152.39,2.39580587]
[1745538642907,85.20143068,152.4,152.39,2.39580587]
[1745538643211,85.20143068,152.4,152.38,0.063]
[1745538643412,7.75710405,152.39,152.38,0.063]
[1745538643907,14.31921442,152.39,152.38,0.063]
[1745538645505,6.56211037,152.39,152.38,0.063]
[1745538645683,14.31894743,152.4,152.38,0.063]
[1745538645886,6.56184338,152.4,152.38,0.063]
[1745538646306,26.40675291,152.41,152.38,0.063]
[1745538646307,32.96815536,152.41,152.38,0.063]
[1745538648809,7.75710405,152.4,152.38,0.063]
[1745538650519,14.31883906,152.4,152.38,0.063]
[1745538651918,26.40675291,152.39,152.38,0.063]
[1745538652608,59.11102485,152.39,152.38,0.063]
[1745538654098,58.96886328,152.39,152.38,0.063]
[1745538658517,59.11102485,152.39,152.38,0.063]
[1745538658827,60.69552485,152.39,152.38,1e-08]
[1745538659194,60.55336328,152.39,152.38,1e-08]
[1745538659394,58.96886328,152.39,152.38,1e-08]
[1745538665001,6.56182924,152.4,152.38,1e-08]
[1745538666620,7.75710405,152.43,152.39,7.75710405]
[1745538667227,6.56054731,152.43,152.4,7.75710405]
[1745538667920,6.56054731,152.43,152.39,7.75710405]
[1745538669825,7.75710405,152.42,152.38,1e-08]
[1745538669999,6.56124926,152.41,152.38,1e-08]
[1745538670204,14.31835331,152.41,152.38,1e-08]
[1745538672028,7.75710405,152.42,152.38,1e-08]
[1745538673025,7.75710405,152.41,152.38,1e-08]
[1745538673210,7.75710405,152.39,152.38,1e-08]
[1745538673617,26.40675291,152.41,152.38,1e-08]
[1745538674530,6.56167979,152.4,152.38,1e-08]
[1745538674918,26.40675291,152.41,152.38,1e-08]
[1745538675124,25.21101796,152.41,152.38,1e-08]
[1745538676232,6.5613691,152.41,152.38,1e-08]
[1745538676616,6.5613691,152.41,152.38,7.75710406]
[1745538676816,6.56097237,152.42,152.38,7.75710406]
[1745538677015,6.56097237,152.42,152.39,7.75710405]
[1745538677736,6.56051103,152.43,152.39,7.75710405]
[1745538678423,14.31761508,152.43,152.38,7.75710406]
[1745538679031,6.56051103,152.43,152.39,7.75710405]
[1745538679235,51.20978367,152.44,152.4,7.75710405]
[1745538680149,51.20978367,152.44,152.38,1e-08]
[1745538680150,58.96688772,152.44,152.39,7.75710405]
[1745538680445,58.96688772,152.44,152.4,7.75710405]
[1745538681046,0.063,152.46,152.41,7.75710405]
[1745538681223,0.063,152.46,152.42,7.75710405]
[1745538681432,0.063,152.46,152.43,7.75710405]
[1745538683433,6.62209746,152.46,152.43,7.75710405]
[1745538683639,6.62209746,152.46,152.42,7.75710405]
[1745538684924,14.37920151,152.46,152.42,7.75710405]
[1745538685122,7.75710405,152.45,152.41,7.75710405]
[1745538686239,7.75710405,152.44,152.4,7.75710405]
[1745538686645,6.62209746,152.46,152.39,9.27280405]
[1745538686646,7.75710405,152.43,152.39,9.27280405]
[1745538686850,7.75710405,152.44,152.4,7.75710405]
[1745538687028,7.75710405,152.45,152.4,7.75710405]
[1745538687229,14.31681086,152.45,152.4,7.75710405]
[1745538689848,7.75710405,152.44,152.4,7.75710405]
[1745538692529,14.31689975,152.45,152.4,14.31876226]
[1745538694755,14.37927395,152.46,152.42,7.75710405]
[1745538694942,7.82010405,152.46,152.42,7.75710405]
[1745538695554,14.37923717,152.46,152.42,7.75710405]
[1745538695933,14.37923717,152.46,152.41,7.75710405]
[1745538696339,7.75710405,152.44,152.39,9.27280405]
[1745538696846,14.31727317,152.44,152.4,10.14355377]
[1745538698045,14.31727317,152.44,152.4,7.75710405]
[1745538698341,7.75710405,152.43,152.39,9.27280405]
[1745538699159,14.31727317,152.44,152.4,2.3867071]
[1745538700259,14.31727317,152.44,152.39,9.27280405]
[1745538702166,14.31727317,152.44,152.4,2.38814692]
[1745538702962,14.31727317,152.44,152.39,9.27280405]
[1745538703568,7.75710405,152.43,152.39,7.75710405]
[1745538704461,14.31727317,152.44,152.4,2.38955773]
[1745538705265,14.31727317,152.44,152.41,2.38955773]
[1745538705575,7.75710405,152.44,152.41,2.38955773]
[1745538705749,0.063,152.46,152.43,7.75710405]
[1745538707158,7.82010405,152.46,152.42,7.75710405]
[1745538707540,7.82010405,152.46,152.41,7.75710405]
[1745538707744,7.75710405,152.45,152.41,7.75710405]
[1745538707941,7.75710405,152.45,152.42,2.39170505]
[1745538708863,14.31687175,152.45,152.43,2.39170505]
[1745538709740,14.31687175,152.45,152.41,2.39170505]
[1745538710462,7.75710405,152.44,152.41,2.39170505]
[1745538710836,7.75710405,152.44,152.42,2.39170505]
[1745538711040,0.063,152.46,152.42,2.39170505]
[1745538711258,7.75710405,152.45,152.42,2.39170505]
[1745538711647,7.75710405,152.45,152.43,2.39170505]
[1745538714568,14.31673374,152.45,152.43,2.39170505]
[1745538715148,14.31673374,152.45,152.41,2.39170505]
[1745538715446,14.31673374,152.45,152.41,10.1488091]
[1745538715975,14.31673374,152.45,152.42,2.39170505]
[1745538716670,14.37937276,152.46,152.42,2.39170505]
[1745538716854,14.37937276,152.46,152.43,2.39170505]
[1745538718072,14.37937276,152.46,152.44,2.39170505]
[1745538718272,14.37937276,152.46,152.42,2.39170505]
[1745538719171,14.37937276,152.46,152.43,2.39170505]
[1745538720275,14.37937276,152.46,152.41,7.75710405]
[1745538721271,14.37937276,152.46,152.42,2.40046653]
[1745538721866,7.75710405,152.45,152.42,2.40046653]
[1745538722083,18.64964886,152.45,152.43,2.40046653]
[1745538722257,7.75710405,152.44,152.43,2.40046653]
[1745538722451,26.40675291,152.44,152.43,2.40046653]
[1745538722653,18.64964886,152.43,152.38,1e-08]
[1745538722967,7.75710405,152.39,152.38,1e-08]
[1745538723273,14.31921442,152.39,152.38,1e-08]
[1745538723668,7.75710405,152.39,152.38,1e-08]
[1745538727879,7.75710405,152.4,152.38,1e-08]
[1745538728679,26.40675291,152.39,152.38,1e-08]
[1745538729669,32.96886328,152.39,152.38,1e-08]
[1745538739493,33.11102485,152.39,152.38,1e-08]
[1745538745172,44.64964886,152.37,152.36,0.063]
[1745538745378,52.40675291,152.37,152.36,0.063]
[1745538745978,18.64964886,152.36,152.34,0.063]
[1745538746174,18.64964886,152.36,152.31,0.063]
[1745538746175,18.64964886,152.32,152.31,0.063]
[1745538746399,26.54891448,152.32,152.31,1e-08]
[1745538746700,52.87699861,152.3,152.29,1e-08]
[1745538746895,73.85410266,152.3,152.29,1e-08]
[1745538747306,18.64964886,152.25,152.22,0.03]
[1745538747497,7.75710405,152.24,152.22,0.03]
[1745538748699,26.40675291,152.25,152.22,0.03]
[1745538748887,18.64964886,152.25,152.22,0.03]
[1745538749288,26.40675291,152.25,152.22,0.03]
[1745538749585,7.75710405,152.27,152.23,7.75710405]
[1745538750200,7.75710405,152.28,152.23,7.75710405]
[1745538750502,7.75710405,152.27,152.22,7.78710405]
[1745538750683,7.75710405,152.28,152.23,7.75710405]
[1745538751104,7.75710405,152.28,152.23,14.3259578]
[1745538751780,7.75710405,152.28,152.23,7.75710405]
[1745538751988,7.75710405,152.28,152.23,14.32590381]
[1745538752184,6.5648074,152.33,152.27,7.75710405]
[1745538752484,18.64964886,152.31,152.27,7.75710405]
[1745538752686,26.40675291,152.31,152.26,7.75710405]
[1745538754613,7.75710405,152.3,152.25,14.325174]
[1745538755683,7.75710405,152.3,152.26,7.75710405]
[1745538756194,26.40675291,152.31,152.26,7.75710405]
[1745538756909,32.97240922,152.31,152.26,7.75710405]
[1745538757804,26.40675291,152.31,152.26,14.32461609]
[1745538758206,7.75710405,152.3,152.26,14.32461609]
[1745538758389,7.75710405,152.3,152.26,7.75710405]
[1745538758699,26.40675291,152.29,152.24,21.86007761]
[1745538758999,26.40675291,152.29,152.22,107.53]
[1745538759000,7.75710405,152.27,152.23,7.75710405]
[1745538759206,7.75710405,152.27,152.22,95.85638048]
[1745538759396,7.75710405,152.27,152.22,81.53]
[1745538759705,7.75710405,152.27,152.22,95.85644907]
[1745538761005,7.75710405,152.25,152.22,0.03]
[1745538761788,7.75710405,152.24,152.22,0.03]
[1745538763409,7.75710405,152.25,152.22,0.03]
[1745538763991,7.75710405,152.27,152.23,7.75710405]
[1745538764191,18.64964886,152.27,152.23,7.75710405]
[1745538764489,26.40675291,152.27,152.22,7.78710405]
[1745538764707,7.75710405,152.26,152.22,0.03]
[1745538765511,7.75710405,152.26,152.22,7.78710405]
[1745538766496,7.75710405,152.25,152.22,0.03]
[1745538766708,7.75710405,152.24,152.22,0.03]
[1745538769909,6.56783357,152.26,152.22,0.03]
[1745538770102,7.75710405,152.25,152.22,0.03]
[1745538771014,14.32537493,152.25,152.22,0.03]
[1745538772927,18.64964886,152.25,152.22,0.03]
[1745538773227,26.40675291,152.25,152.22,0.03]
[1745538774697,7.75710405,152.24,152.22,0.03]
[1745538774902,7.75710405,152.23,152.22,0.03]
[1745538775219,32.97576033,152.23,152.22,0.03]
[1745538775798,33.1179219,152.23,152.22,0.03]
[1745538776311,102.48867619,152.24,152.22,0.03]
[1745538776508,89.26867619,152.24,152.22,0.03]
[1745538776827,82.7,152.24,152.22,0.03]
[1745538777333,26.0,152.26,152.22,7.78710405]
[1745538777334,40.32486503,152.26,152.22,7.78710405]
[1745538777497,40.32486503,152.26,152.22,0.03]
[1745538777693,26.40675291,152.25,152.22,0.03]
[1745538777928,7.75710405,152.24,152.22,0.03]
[1745538779145,14.32597621,152.24,152.22,0.03]
[1745538779521,7.75710405,152.23,152.22,0.03]
[1745538779716,14.32597621,152.24,152.22,0.03]
[1745538781551,6.56887216,152.24,152.22,0.03]
[1745538781744,14.32597621,152.24,152.22,0.03]
[1745538781944,6.56887216,152.24,152.22,0.03]
[1745538782120,32.97505488,152.25,152.22,0.03]
[1745538787846,6.56786131,152.26,152.22,7.78710405]
[1745538788033,7.75710405,152.25,152.22,0.03]
[1745538788230,14.32567998,152.24,152.22,0.03]
[1745538794765,26.40675291,152.23,152.22,0.03]
[1745538795061,26.54891448,152.23,152.22,0.03]
[1745538796656,33.1179219,152.23,152.22,0.03]
[1745538800955,72.3379219,152.23,152.22,0.03]
[1745538804146,18.79181043,152.22,152.15,9.42450405]
[1745538804347,7.75710405,152.2,152.15,9.42450405]
[1745538804764,7.75710405,152.19,152.15,1.6674]
[1745538804957,7.75710405,152.16,152.15,0.03]
[1745538806271,6.57174051,152.17,152.15,0.03]
[1745538807263,32.978057,152.18,152.15,0.03]
[1745538807870,25.22095295,152.18,152.15,0.03]
[1745538808062,7.75710405,152.2,152.16,7.75710405]
[1745538808269,18.64964886,152.21,152.17,7.75710405]
[1745538808772,25.21965541,152.21,152.17,7.75710405]
[1745538809074,40.32660444,152.22,152.17,7.75710405]
[1745538809556,7.75710405,152.21,152.17,7.75710405]
[1745538810473,14.32660444,152.22,152.18,7.75710405]
[1745538810667,6.56950039,152.22,152.19,7.75710405]
[1745538811049,14.32622866,152.23,152.19,7.75710405]
[1745538811249,82.7,152.24,152.21,7.75710405]
[1745538811463,14.32538793,152.25,152.21,7.75710405]
[1745538811664,14.32538793,152.25,152.2,7.75710405]
[1745538812164,6.56828388,152.25,152.21,7.75710405]
[1745538812556,26.40675291,152.26,152.22,7.75710405]
[1745538812970,26.40675291,152.26,152.21,7.75710405]
[1745538813774,32.97458143,152.26,152.21,7.75710405]
[1745538816272,14.32535986,152.25,152.21,7.75710405]
[1745538816471,6.56825581,152.25,152.2,14.21240405]
[1745538816662,6.56825581,152.25,152.21,7.75710405]
[1745538816864,14.32535986,152.25,152.21,7.75710405]
[1745538817073,14.32535986,152.25,152.2,14.21240405]
[1745538817681,7.75710405,152.24,152.2,6.4553]
[1745538817848,6.56825581,152.25,152.2,7.75710405]
[1745538818055,7.75710405,152.24,152.2,7.75710405]
[1745538818281,14.32535986,152.25,152.2,7.75710405]
[1745538821867,7.75710405,152.24,152.2,7.75710405]
[1745538822267,14.32601999,152.24,152.2,7.75710405]
[1745538823267,14.32524854,152.25,152.2,7.75710405]
[1745538823469,14.32524854,152.25,152.21,7.75710405]
[1745538824168,14.32524854,152.25,152.2,7.75710405]
[1745538824583,6.56814449,152.25,152.2,7.75710405]
[1745538824789,26.40675291,152.24,152.19,1.6239]
[1745538824972,26.40675291,152.24,152.19,9.38100405]
[1745538825176,18.64964886,152.24,152.2,7.75710405]
[1745538826693,6.56900742,152.23,152.2,7.75710405]